bitfinex/quotes_BTCUSD_20250212
["timestamp","ask_amount","ask_price","bid_price","bid_amount"]
[1739368810117,0.157888,95004.0,94969.0,0.157946]
[1739368810469,0.10250365,95005.0,94967.0,0.157948]
[1739368810675,0.157894,95000.0,94970.0,0.10250365]
[1739368810868,0.10250365,94999.0,94968.0,0.00105278]
[1739368811064,0.10250365,94999.0,94965.0,0.0143701]
[1739368811065,0.02135088,94987.0,94965.0,0.0143701]
[1739368811483,0.02135088,94987.0,94973.0,0.157938]
[1739368811686,0.02135088,94987.0,94966.0,0.26045465]
[1739368811896,0.02135088,94987.0,94965.0,0.0143701]
[1739368812123,0.10250365,94986.0,94965.0,0.0143701]
[1739368812542,0.078,94985.0,94965.0,0.0143701]
[1739368812760,0.02235088,94987.0,94970.0,0.14875614]
[1739368812967,0.02235088,94987.0,94965.0,0.1643701]
[1739368813403,0.001,94987.0,94967.0,0.15]
[1739368813608,0.082,94997.0,94968.0,0.26045065]
[1739368813811,0.29476199,95007.0,94967.0,0.15]
[1739368813812,0.007,94987.0,94967.0,0.15]
[1739368814025,0.007,94987.0,94967.0,0.15044392]
[1739368814026,0.008,94987.0,94967.0,0.15044392]
[1739368814234,0.007,94987.0,94967.0,0.15044392]
[1739368814453,0.0214584,94990.0,94967.0,0.15044392]
[1739368814690,0.001,94987.0,94967.0,0.15044392]
[1739368814884,0.001,94987.0,94967.0,0.00044392]
[1739368814885,0.10250365,94986.0,94967.0,0.00044392]
[1739368815100,0.157921,94984.0,94967.0,0.00044392]
[1739368815309,0.157924,94982.0,94967.0,0.00044392]
[1739368815533,0.29139565,94983.0,94967.0,0.00044392]
[1739368815746,0.02146202,94977.0,94967.0,0.00044392]
[1739368816139,0.3938993,94983.0,94967.0,0.00044392]
[1739368817028,0.02152951,94982.0,94967.0,0.00044392]
[1739368817251,0.02152951,94982.0,94971.0,0.15]
[1739368817432,0.29139565,94983.0,94975.0,0.157935]
[1739368817635,0.29139565,94983.0,94975.0,0.00105282]
[1739368817860,0.29439565,94983.0,94981.0,0.157925]
[1739368818087,0.014,94983.0,94982.0,0.15]
[1739368818239,0.011,94983.0,94982.0,0.25250365]
[1739368818438,0.1,94994.0,94993.0,0.157906]
[1739368818641,0.1,94994.0,94993.0,0.307906]
[1739368818945,0.1,94994.0,94993.0,0.43340965]
[1739368819365,0.05094004,94994.0,94993.0,1.14512865]
[1739368819576,0.05094004,94994.0,94993.0,1.20323865]
[1739368820176,0.05094004,94994.0,94993.0,1.22077379]
[1739368820743,0.05194004,94994.0,94993.0,1.22077379]
[1739368820948,0.05194004,94994.0,94993.0,2.72077379]
[1739368821562,0.05294004,94994.0,94993.0,2.72077379]
[1739368821930,0.05294004,94994.0,94993.0,1.22077379]
[1739368822129,0.05194004,94994.0,94993.0,1.22077379]
[1739368822392,0.05294004,94994.0,94993.0,1.23429379]
[1739368823023,0.05194004,94994.0,94993.0,1.22077379]
[1739368823231,0.05194004,94994.0,94993.0,0.27794479]
[1739368823868,0.05094004,94994.0,94993.0,0.27794479]
[1739368824074,0.05094004,94994.0,94993.0,0.42794479]
[1739368824288,0.05194004,94994.0,94993.0,0.45094479]
[1739368824544,0.05294004,94994.0,94993.0,0.42794479]
[1739368824802,0.05294004,94994.0,94985.0,0.0782]
[1739368824803,0.05294004,94994.0,94985.0,0.210559]
[1739368825032,0.05094004,94994.0,94982.0,0.157924]
[1739368825277,0.05294004,94994.0,94985.0,0.157918]
[1739368825516,0.05294004,94994.0,94992.0,0.157907]
[1739368825747,0.05094004,94994.0,94992.0,0.157907]
[1739368825984,0.05294004,94994.0,94992.0,0.157907]
[1739368826497,0.05294004,94994.0,94983.0,0.210563]
[1739368826725,0.05294004,94994.0,94991.0,0.157908]
[1739368826967,0.05294004,94994.0,94993.0,0.157906]
[1739368827206,0.05194004,94994.0,94991.0,0.157909]
[1739368827430,0.05294004,94994.0,94991.0,0.157909]
[1739368827927,0.05194004,94994.0,94981.0,0.15]
[1739368828168,0.05194004,94994.0,94979.0,0.15]
[1739368828892,0.05094004,94994.0,94979.0,0.15]
[1739368829141,0.157909,94992.0,94972.0,0.1821276]
[1739368829353,0.10250365,94991.0,94972.0,0.1821276]
[1739368829553,0.0190516,94993.0,94972.0,0.1821276]
[1739368829757,0.10250365,94992.0,94976.0,0.157934]
[1739368830006,0.10250365,94992.0,94972.0,0.1821276]
[1739368830424,0.12244875,94991.0,94967.0,0.00055062]
[1739368830633,0.15792,94985.0,94967.0,0.00055062]
[1739368830838,0.10250365,94984.0,94967.0,0.00055062]
[1739368831046,0.29139565,94983.0,94967.0,0.00055062]
[1739368831252,0.10250365,94982.0,94967.0,0.00055062]
[1739368831397,0.29139565,94983.0,94970.0,0.2238064]
[1739368831622,0.04943628,94991.0,94971.0,0.27550365]
[1739368831821,0.04943628,94991.0,94980.0,0.2238064]
[1739368832025,0.004,94985.0,94984.0,0.157921]
[1739368832225,0.04943628,94991.0,94977.0,0.15]
[1739368832389,0.0190516,94990.0,94977.0,0.15]
[1739368832887,0.0190516,94990.0,94977.0,0.360575]
[1739368833082,0.0190516,94990.0,94977.0,0.15]
[1739368833431,0.0190516,94990.0,94973.0,0.15]
[1739368833659,0.0190516,94990.0,94967.0,0.00055062]
[1739368833902,0.003,94983.0,94969.0,0.023]
[1739368834126,0.15193993,94989.0,94967.0,0.00055062]
[1739368834362,0.10250365,94982.0,94967.0,0.00055062]
[1739368834568,0.29139565,94988.0,94967.0,0.00055062]
[1739368834769,0.10250365,94987.0,94967.0,0.00055062]
[1739368835126,0.0190516,94981.0,94967.0,0.00055062]
[1739368835532,0.04943628,94981.0,94967.0,0.00055062]
[1739368835910,0.04943628,94981.0,94974.0,0.023]
[1739368836120,0.04943628,94981.0,94976.0,0.023]
[1739368836319,0.04943628,94981.0,94980.0,0.180927]
[1739368836785,0.001,94981.0,94980.0,0.180927]
[1739368838247,0.02012326,94981.0,94980.0,0.180927]
[1739368838696,0.02012326,94981.0,94980.0,0.023]
[1739368838904,0.05072789,94981.0,94980.0,0.180927]
[1739368839592,0.08494024,94981.0,94967.0,0.00055062]
[1739368839840,0.30793,94979.0,94967.0,0.00055062]
[1739368840085,0.0462,94975.0,94967.0,0.00055062]
[1739368840322,0.15,94973.0,94967.0,0.00055062]
[1739368840580,0.10250365,94972.0,94967.0,0.00055062]
[1739368840788,0.02072005,94968.0,94967.0,0.00055062]
[1739368840990,0.1232237,94968.0,94967.0,0.00055062]
[1739368841219,0.56461935,94968.0,94967.0,0.0001067]
[1739368841433,0.15,94967.0,94937.0,0.0001066]
[1739368841634,0.15,94956.0,94938.0,0.08424999]
[1739368841770,0.10250365,94955.0,94938.0,0.08424999]
[1739368841966,0.157987,94945.0,94937.0,0.00023935]
[1739368842156,0.3938993,94944.0,94937.0,0.00023935]
[1739368843030,0.04972789,94943.0,94937.0,0.00023935]
[1739368843234,0.157992,94941.0,94937.0,0.00023935]
[1739368843382,0.15,94939.0,94937.0,0.00023935]
[1739368843588,0.25250365,94938.0,94937.0,0.00023935]
[1739368844193,0.25250365,94938.0,94898.0,0.0001066]
[1739368844194,0.158012,94929.0,94898.0,0.0001066]
[1739368844398,0.13937165,94929.0,94898.0,0.0001066]
[1739368844580,0.25250365,94918.0,94898.0,0.00023983]
[1739368844784,0.02071161,94911.0,94883.0,0.210784]
[1739368845063,0.10250365,94910.0,94890.0,0.3818834]
[1739368845314,0.10250365,94910.0,94877.0,0.00024003]
[1739368845524,0.11206281,94910.0,94883.0,0.158088]
[1739368845723,0.11206281,94910.0,94877.0,0.00024003]
[1739368845872,0.11206281,94910.0,94885.0,0.158085]
[1739368846077,0.03060463,94909.0,94887.0,0.023]
[1739368846282,0.10250365,94908.0,94887.0,0.023]
[1739368846477,0.10250365,94908.0,94880.0,0.023]
[1739368846661,0.158049,94907.0,94877.0,0.15833803]
[1739368846872,0.10250365,94906.0,94877.0,0.00024003]
[1739368847070,0.15223154,94906.0,94883.0,0.023]
[1739368847272,0.15,94902.0,94883.0,0.023]
[1739368847539,0.15807,94895.0,94877.0,0.00024003]
[1739368847827,0.15,94900.0,94877.0,0.00024003]
[1739368847828,0.10250365,94894.0,94877.0,0.00024003]
[1739368848345,0.18675364,94893.0,94877.0,0.00024003]
[1739368848546,0.10250365,94893.0,94877.0,0.00024003]
[1739368848751,0.1617907,94893.0,94870.0,0.0001066]
[1739368848961,0.16192363,94893.0,94870.0,0.0001066]
[1739368849209,0.03199906,94892.0,94870.0,0.0001066]
[1739368849448,0.10250365,94891.0,94870.0,0.0231066]
[1739368850374,0.10303249,94890.0,94870.0,0.246913]
[1739368850605,0.10303249,94890.0,94872.0,0.023]
[1739368851157,0.07903249,94890.0,94872.0,0.023]
[1739368851364,0.01319474,94889.0,94881.0,0.23379]
[1739368851574,0.04379937,94889.0,94888.0,0.158081]
[1739368851780,0.04379937,94889.0,94888.0,0.181081]
[1739368852222,0.04379937,94889.0,94888.0,0.43463837]
[1739368852433,0.04379937,94889.0,94888.0,1.93358465]
[1739368852655,0.04379937,94889.0,94888.0,0.43358465]
[1739368852943,0.01719474,94889.0,94888.0,0.45077257]
[1739368853148,0.08424999,94912.0,94911.0,0.023]
[1739368853574,0.29139565,94929.0,94907.0,0.023]
[1739368853778,0.00013323,94924.0,94919.0,0.023]
[1739368853955,0.00013323,94924.0,94923.0,0.181022]
[1739368854155,0.00013323,94924.0,94923.0,0.43457895]
[1739368854312,0.00013323,94924.0,94923.0,0.43352565]
[1739368854508,0.09066731,94951.0,94924.0,0.173]
[1739368854718,0.08424999,94952.0,94950.0,0.023]
[1739368854920,0.08424999,94952.0,94950.0,0.180976]
[1739368855126,0.09066731,94986.0,94950.0,0.12550365]
[1739368855361,0.08469427,94981.0,94968.0,0.023]
[1739368855563,0.08469427,94981.0,94960.0,0.2238064]
[1739368855767,0.00044428,94981.0,94952.0,0.15]
[1739368855980,0.00044428,94981.0,94970.0,0.2238064]
[1739368856183,0.00044428,94981.0,94979.0,0.157928]
[1739368856396,0.01544428,94981.0,94976.0,0.157933]
[1739368856594,0.01544428,94981.0,94970.0,0.2238064]
[1739368856975,0.00044428,94981.0,94977.0,0.157931]
[1739368857176,0.00044428,94981.0,94966.0,0.2106]
[1739368857387,0.00044428,94981.0,94968.0,0.157946]
[1739368857766,0.00044428,94981.0,94969.0,0.173]
[1739368858559,0.00044428,94981.0,94947.0,0.157981]
[1739368858560,0.157935,94976.0,94947.0,0.157981]
[1739368858757,0.00444428,94981.0,94951.0,0.23424999]
[1739368858758,0.10250365,94975.0,94951.0,0.23424999]
[1739368858960,0.10250365,94975.0,94954.0,0.15]
[1739368859569,0.10250365,94975.0,94956.0,0.307966]
[1739368859769,0.10250365,94975.0,94957.0,0.023]
[1739368860182,0.157937,94974.0,94951.0,0.001]
[1739368860421,0.10250365,94973.0,94957.0,0.157964]
[1739368860619,0.10250365,94973.0,94958.0,0.023]
[1739368861055,0.10250365,94972.0,94953.0,0.15]
[1739368861308,0.10250365,94972.0,94951.0,0.001]
[1739368861512,0.26044565,94972.0,94951.0,0.001]
[1739368861721,0.26044565,94972.0,94937.0,0.210665]
[1739368861722,0.157946,94969.0,94944.0,0.15]
[1739368861907,0.10250365,94968.0,94944.0,0.15]
[1739368862208,0.29139565,94967.0,94956.0,0.001]
[1739368862435,0.10250365,94966.0,94956.0,0.001]
[1739368862614,0.10250365,94966.0,94923.0,0.01344]
[1739368862844,0.29139565,94967.0,94954.0,0.157969]
[1739368863051,0.29139565,94967.0,94952.0,0.157974]
[1739368863257,0.29139565,94967.0,94951.0,0.001]
[1739368863258,0.29139565,94967.0,94958.0,0.023]
[1739368863662,0.29139565,94967.0,94956.0,0.180967]
[1739368863865,0.29139565,94967.0,94955.0,0.023]
[1739368864369,0.10250365,94966.0,94947.0,0.15]
[1739368864819,0.11450365,94966.0,94956.0,0.001]
[1739368865376,0.10250365,94966.0,94946.0,0.023]
[1739368865582,0.11150365,94966.0,94947.0,0.001]
[1739368865910,0.05822607,94965.0,94947.0,0.001]
[1739368866121,0.10250365,94962.0,94947.0,0.0001068]
[1739368866320,0.29139565,94961.0,94947.0,0.0001068]
[1739368866525,0.210619,94958.0,94956.0,0.001]
[1739368866755,0.10250365,94957.0,94956.0,0.001]
[1739368867150,0.14970365,94957.0,94956.0,0.001]
[1739368868178,0.4410993,94957.0,94956.0,0.001]
[1739368868381,0.4410993,94957.0,94947.0,0.0001068]
[1739368868382,0.157981,94948.0,94947.0,0.0001068]
[1739368868610,0.15,94947.0,94912.0,0.08424999]
[1739368868817,0.10250365,94946.0,94912.0,0.08424999]
[1739368868981,0.210654,94942.0,94912.0,0.08424999]
[1739368869189,0.210663,94939.0,94912.0,0.08424999]
[1739368869385,0.10250365,94938.0,94903.0,0.15]
[1739368869577,0.158008,94932.0,94905.0,0.158052]
[1739368869785,0.10250365,94931.0,94903.0,0.00013323]
[1739368870172,0.29139565,94937.0,94924.0,0.15802]
[1739368870379,0.10250365,94936.0,94925.0,0.181019]
[1739368870602,0.10250365,94936.0,94911.0,0.15]
[1739368870936,0.158009,94932.0,94904.0,0.158054]
[1739368871161,0.31317465,94935.0,94895.0,0.02187151]
[1739368871162,0.10250365,94931.0,94906.0,0.158051]
[1739368871364,0.10250365,94931.0,94901.0,0.15]
[1739368871568,0.10250365,94921.0,94886.0,0.01334473]
[1739368871766,0.158052,94906.0,94886.0,0.01334473]
[1739368871939,0.10250365,94905.0,94886.0,0.01334473]
[1739368872326,0.10250365,94905.0,94882.0,0.08424999]
[1739368872526,0.10250365,94905.0,94880.0,0.0001069]
[1739368872527,0.26055665,94905.0,94880.0,0.0001069]
[1739368873206,0.10250365,94904.0,94880.0,0.0001069]
[1739368873429,0.25250365,94904.0,94880.0,0.0001069]
[1739368873610,0.15,94903.0,94850.0,0.34506413]
[1739368873782,0.15,94903.0,94841.0,0.0779]
[1739368873783,0.158094,94880.0,94853.0,0.08469471]
[1739368873984,0.10250365,94879.0,94853.0,0.08469471]
[1739368874188,0.10250365,94879.0,94853.0,0.00044472]
[1739368875193,0.10250365,94879.0,94853.0,0.15858272]
[1739368875396,0.158098,94878.0,94853.0,0.00044472]
[1739368875599,0.10250365,94877.0,94853.0,0.00044472]
[1739368876013,0.10250365,94877.0,94855.0,0.15]
[1739368876859,0.10250365,94877.0,94853.0,0.00044472]
[1739368876860,0.16487956,94877.0,94856.0,0.023]
[1739368877070,0.210801,94876.0,94853.0,0.00044472]
[1739368877275,0.02089048,94884.0,94853.0,0.00044472]
[1739368877276,0.10250365,94875.0,94853.0,0.00044472]
[1739368877479,0.158115,94868.0,94853.0,0.00044472]
[1739368877716,0.10250365,94867.0,94853.0,0.00044472]
[1739368877961,0.04714307,94866.0,94853.0,0.00044472]
[1739368878159,0.10250365,94865.0,94853.0,0.00044472]
[1739368878996,0.014,94875.0,94853.0,0.00044472]
[1739368879201,0.10250365,94874.0,94853.0,0.00044472]
[1739368879417,0.01,94865.0,94853.0,0.00044472]
[1739368879618,0.10250365,94864.0,94853.0,0.00044472]
[1739368879820,0.10250365,94864.0,94855.0,0.023]
[1739368880196,0.10250365,94864.0,94856.0,0.00690441]
[1739368880427,0.10250365,94864.0,94857.0,0.023]
[1739368880834,0.10250365,94864.0,94853.0,0.00055142]
[1739368881012,0.02073765,94872.0,94853.0,0.00055142]
[1739368881220,0.10250365,94871.0,94853.0,0.00055142]
[1739368881621,0.26061365,94871.0,94853.0,0.00055142]
[1739368881827,0.158113,94869.0,94853.0,0.00055142]
[1739368882038,0.008,94864.0,94853.0,0.00055142]
[1739368882241,0.15813,94859.0,94853.0,0.00055142]
[1739368882443,0.10250365,94858.0,94853.0,0.00055142]
[1739368883327,0.158137,94854.0,94853.0,0.00055142]
[1739368883530,0.26064065,94854.0,94853.0,0.00055142]
[1739368883741,0.15,94853.0,94830.0,0.22442965]
[1739368884082,0.158151,94846.0,94831.0,0.00701645]
[1739368884294,0.10250365,94845.0,94831.0,0.00701645]
[1739368884499,0.158158,94842.0,94821.0,0.00013293]
[1739368884724,0.10250365,94841.0,94821.0,0.00013293]
[1739368885349,0.26066365,94841.0,94821.0,0.00013293]
[1739368885531,0.05306337,94840.0,94821.0,0.00013293]
[1739368885781,0.10250365,94839.0,94821.0,0.00013293]
[1739368886414,0.10250365,94839.0,94823.0,0.023]
[1739368887030,0.10250365,94839.0,94821.0,0.00013293]
[1739368887650,0.158168,94836.0,94821.0,0.00013293]
[1739368887869,0.02067882,94846.0,94821.0,0.00013293]
[1739368887870,0.10250365,94835.0,94821.0,0.00013293]
[1739368888099,0.158175,94832.0,94821.0,0.00013293]
[1739368888282,0.10250365,94831.0,94821.0,0.00013293]
[1739368888619,0.17770365,94830.0,94783.0,0.08424999]
[1739368888829,0.10250365,94830.0,94800.0,0.158227]
[1739368889029,0.158177,94831.0,94800.0,0.158227]
[1739368889030,0.0788,94857.0,94824.0,0.158186]
[1739368889245,0.210795,94879.0,94847.0,0.22442965]
[1739368889479,0.08424999,94867.0,94848.0,0.023]
[1739368889676,0.10250365,94867.0,94848.0,0.023]
[1739368889881,0.02140747,94875.0,94860.0,0.210836]
[1739368890093,0.10250365,94874.0,94861.0,0.023]
[1739368890295,0.00013316,94875.0,94874.0,0.181104]
[1739368890742,0.00013316,94875.0,94874.0,0.18485025]
[1739368890985,0.00013316,94875.0,94874.0,0.181104]
[1739368891213,0.00013316,94875.0,94874.0,0.43360765]
[1739368891436,0.00013316,94875.0,94874.0,0.51310765]
[1739368891674,0.00113316,94875.0,94874.0,0.51310765]
[1739368891901,0.00022408,94878.0,94877.0,0.308099]
[1739368892119,0.00066844,94878.0,94877.0,1.33373965]
[1739368892353,0.09066731,94908.0,94907.0,0.181049]
[1739368892578,0.09080054,94908.0,94907.0,0.43355265]
[1739368893008,0.09080054,94908.0,94907.0,0.331049]
[1739368893466,0.00013323,94908.0,94907.0,0.331049]
[1739368893907,0.00013323,94908.0,94907.0,0.43355265]
[1739368894123,0.00013323,94908.0,94907.0,0.50985265]
[1739368895362,0.00013323,94908.0,94907.0,0.53161137]
[1739368895569,0.00013323,94908.0,94907.0,0.181049]
[1739368895994,0.00113323,94908.0,94907.0,0.009]
[1739368897081,0.00113323,94908.0,94907.0,0.032]
[1739368898069,0.00013323,94908.0,94907.0,0.023]
[1739368898294,0.00113323,94908.0,94907.0,0.031]
[1739368898762,0.00013323,94908.0,94896.0,0.210755]
[1739368898978,0.00013323,94908.0,94899.0,0.158062]
[1739368899195,0.00413323,94908.0,94907.0,0.001]
[1739368899435,0.00413323,94908.0,94907.0,0.33510365]
[1739368899663,0.0214408,94964.0,94938.0,0.157996]
[1739368899921,0.00013321,94945.0,94935.0,0.34550885]
[1739368900856,0.00013321,94945.0,94924.0,0.0134]
[1739368901101,0.00013321,94945.0,94928.0,0.023]
[1739368901323,0.00013321,94945.0,94927.0,0.15]
[1739368901561,0.00013321,94945.0,94937.0,0.157998]
[1739368901802,0.004,94945.0,94938.0,0.023]
[1739368902047,0.004,94945.0,94931.0,0.023]
[1739368902540,0.157971,94954.0,94928.0,0.15]
[1739368902762,0.003,94945.0,94929.0,0.023]
[1739368903224,0.26047665,94953.0,94928.0,0.00013321]
[1739368903448,0.10250365,94953.0,94928.0,0.00013321]
[1739368903677,0.004,94945.0,94928.0,0.00013321]
[1739368903866,0.10250365,94944.0,94928.0,0.02313321]
[1739368904104,0.10250365,94944.0,94928.0,0.00013321]
[1739368904332,0.15801,94931.0,94928.0,0.00013321]
[1739368904558,0.10250365,94930.0,94928.0,0.00013321]
[1739368905287,0.158012,94929.0,94928.0,0.00013321]
[1739368905500,0.41051565,94929.0,94928.0,0.00013321]
[1739368905706,0.47263512,94929.0,94928.0,0.00013321]
[1739368905913,0.41051565,94929.0,94928.0,0.00013321]
[1739368906173,0.158055,94904.0,94902.0,0.08424999]
[1739368906378,0.158055,94904.0,94891.0,0.08424999]
[1739368906379,0.15,94928.0,94903.0,0.08424999]
[1739368906588,0.15,94928.0,94891.0,0.08424999]
[1739368906589,0.210716,94915.0,94891.0,0.08438322]
[1739368906799,0.21069,94926.0,94891.0,0.08438322]
[1739368907033,0.015,94927.0,94891.0,0.08438322]
[1739368907264,0.0468,94938.0,94891.0,0.08438322]
[1739368907265,0.15,94919.0,94892.0,0.023]
[1739368907499,0.10250365,94918.0,94892.0,0.023]
[1739368907714,0.10250365,94918.0,94892.0,0.181073]
[1739368907953,0.158049,94907.0,94892.0,0.023]
[1739368908163,0.158053,94905.0,94891.0,0.00013323]
[1739368908379,0.158058,94902.0,94891.0,0.00013323]
[1739368908660,0.10250365,94901.0,94891.0,0.00013323]
[1739368908871,0.158066,94897.0,94866.0,0.05509981]
[1739368909086,0.12405996,94896.0,94866.0,0.05509981]
[1739368909516,0.158083,94887.0,94861.0,0.15]
[1739368909717,0.10250365,94886.0,94861.0,0.15]
[1739368909941,0.10250365,94886.0,94860.0,0.00044436]
[1739368910144,0.10250365,94886.0,94861.0,0.158126]
[1739368910355,0.10250365,94886.0,94860.0,0.00044436]
[1739368912021,0.10250365,94886.0,94860.0,0.02344436]
[1739368912224,0.10250365,94886.0,94861.0,0.158125]
[1739368912440,0.10950365,94886.0,94862.0,0.023]
[1739368912638,0.10950365,94886.0,94865.0,0.023]
[1739368912846,0.10250365,94886.0,94865.0,0.023]
[1739368912998,0.158065,94898.0,94865.0,0.023]
[1739368913218,0.01,94886.0,94860.0,0.00044436]
[1739368913454,0.01,94886.0,94870.0,0.023]
[1739368913662,0.15,94896.0,94861.0,0.023]
[1739368913918,0.10250365,94895.0,94868.0,0.023]
[1739368914096,0.009,94886.0,94867.0,0.023]
[1739368914500,0.009,94886.0,94869.0,0.023]
[1739368914704,0.009,94886.0,94869.0,0.173]
[1739368914902,0.009,94886.0,94863.0,0.158122]
[1739368915117,0.009,94886.0,94861.0,0.181124]
[1739368915317,0.11921155,94885.0,94860.0,0.00044436]
[1739368915477,0.158126,94861.0,94860.0,0.00044436]
[1739368916014,0.26062965,94861.0,94860.0,0.00044436]
[1739368916814,0.25957565,94861.0,94860.0,0.00044436]
[1739368917217,0.27852392,94861.0,94860.0,0.00044436]
[1739368918833,0.13545192,94861.0,94829.0,0.06505104]
[1739368919035,0.158151,94846.0,94829.0,0.00013316]
[1739368919234,0.10250365,94845.0,94830.0,0.08424999]
[1739368919527,0.10250365,94845.0,94829.0,0.00013316]
[1739368919718,0.210892,94836.0,94831.0,0.00697572]
[1739368919942,0.10250365,94835.0,94829.0,0.00013316]
[1739368920566,0.008,94846.0,94829.0,0.00013316]
[1739368920775,0.008,94846.0,94830.0,0.158177]
[1739368920992,0.008,94846.0,94829.0,0.00013316]
[1739368921667,0.008,94846.0,94831.0,0.023]
[1739368921881,0.0766,94870.0,94831.0,0.210901]
[1739368922093,0.158127,94861.0,94833.0,0.158171]
[1739368922315,0.009,94835.0,94834.0,0.33675364]
[1739368922523,0.009,94835.0,94834.0,0.35975364]
[1739368922751,0.10250365,94879.0,94859.0,0.158128]
[1739368922958,0.0824,94895.0,94857.0,0.019]
[1739368922959,0.158069,94895.0,94857.0,0.019]
[1739368923136,0.02067656,94895.0,94873.0,0.158105]
[1739368923354,0.10250365,94894.0,94886.0,0.158083]
[1739368923562,0.02067656,94895.0,94886.0,0.158083]
[1739368923767,0.23165113,94914.0,94871.0,0.15]
[1739368923968,0.23165113,94914.0,94851.0,0.09760999]
[1739368923969,0.10250365,94894.0,94851.0,0.09760999]
[1739368924205,0.158083,94887.0,94861.0,0.08424999]
[1739368924410,0.10250365,94886.0,94861.0,0.08424999]
[1739368924610,0.158058,94902.0,94862.0,0.15]
[1739368924811,0.10250365,94901.0,94872.0,0.158107]
[1739368925014,0.158078,94890.0,94853.0,0.08424999]
[1739368925218,0.10250365,94889.0,94864.0,0.15812]
[1739368925427,0.10250365,94889.0,94860.0,0.15]
[1739368925762,0.210785,94883.0,94830.0,0.0478]
[1739368925974,0.13383251,94882.0,94845.0,0.08424999]
[1739368926172,0.158117,94866.0,94845.0,0.08793666]
[1739368926376,0.03132886,94882.0,94845.0,0.08793666]
[1739368926377,0.10250365,94865.0,94845.0,0.08793666]
[1739368926576,0.10250365,94865.0,94845.0,0.00368667]
[1739368926784,0.158139,94853.0,94826.0,0.171543]
[1739368926991,0.10250365,94852.0,94826.0,0.158184]
[1739368927194,0.26064465,94852.0,94833.0,0.0069811]
[1739368927503,0.10250365,94852.0,94833.0,0.00324271]
[1739368927877,0.10250365,94852.0,94826.0,0.15831716]
[1739368928084,0.02162494,94841.0,94827.0,0.308182]
[1739368928287,0.10250365,94852.0,94827.0,0.00700965]
[1739368928420,0.03133497,94851.0,94827.0,0.00700965]
[1739368928622,0.158155,94844.0,94826.0,0.00013316]
[1739368928871,0.10250365,94843.0,94826.0,0.00013316]
[1739368929280,0.158175,94832.0,94827.0,0.00703919]
[1739368929482,0.158175,94832.0,94796.0,0.08424999]
[1739368929483,1.62648618,94803.0,94796.0,0.08424999]
[1739368929732,1.62648618,94803.0,94797.0,0.10250365]
[1739368929992,1.62657618,94803.0,94802.0,0.158224]
[1739368930156,1.62657618,94803.0,94797.0,0.31348065]
[1739368930157,9e-05,94803.0,94786.0,0.15825]
[1739368930378,9e-05,94803.0,94787.0,0.00105479]
[1739368930581,9e-05,94803.0,94788.0,0.10250365]
[1739368930735,9e-05,94803.0,94791.0,0.15]
[1739368930934,9e-05,94803.0,94794.0,0.023]
[1739368931137,0.00109,94803.0,94802.0,0.023]
[1739368931379,0.00109,94803.0,94802.0,0.67277917]
[1739368931584,0.08424999,94835.0,94821.0,0.15]
[1739368931910,0.08424999,94825.0,94822.0,0.10250365]
[1739368932111,0.00022408,94857.0,94830.0,0.173]
[1739368932314,0.00022408,94857.0,94832.0,0.023]
[1739368932514,0.00022408,94857.0,94834.0,0.15]
[1739368932641,0.00022408,94857.0,94836.0,0.173]
[1739368932851,0.05398035,94837.0,94836.0,0.15]
[1739368933053,0.05398035,94837.0,94836.0,0.27550365]
[1739368933581,0.05398035,94837.0,94836.0,0.29554014]
[1739368933785,0.08424999,94882.0,94837.0,0.1759]
[1739368933994,0.08424999,94882.0,94864.0,0.15]
[1739368934217,0.08424999,94882.0,94866.0,0.15]
[1739368934437,0.00044472,94894.0,94867.0,0.12550365]
[1739368934647,0.00044472,94894.0,94868.0,0.00105389]
[1739368934853,0.10250365,94893.0,94866.0,0.15]
[1739368935306,0.10250365,94893.0,94857.0,0.173]
[1739368935541,0.10250365,94893.0,94854.0,0.173]
[1739368935765,0.0497,94891.0,94851.0,0.01332]
[1739368936012,0.10250365,94890.0,94851.0,0.09756999]
[1739368936246,0.10250365,94890.0,94852.0,0.173]
[1739368936480,0.02113911,94885.0,94852.0,0.173]
[1739368936731,0.10250365,94884.0,94852.0,0.15]
[1739368936974,0.10250365,94884.0,94839.0,0.29513099]
[1739368936975,0.158111,94870.0,94839.0,0.08424999]
[1739368937237,0.10250365,94869.0,94839.0,0.08424999]
[1739368937474,0.0812,94892.0,94850.0,0.30973073]
[1739368937711,0.10250365,94889.0,94856.0,0.023]
[1739368938162,0.1329423,94889.0,94857.0,0.00105406]
[1739368938372,0.1329423,94889.0,94858.0,0.023]
[1739368938589,0.01903042,94888.0,94860.0,0.173]
[1739368938888,0.12153407,94888.0,94860.0,0.48378471]
[1739368939075,0.01903042,94888.0,94874.0,0.173]
[1739368939758,0.01903042,94905.0,94874.0,0.173]
[1739368940466,0.01903042,94905.0,94874.0,0.023]
[1739368940678,0.01903042,94905.0,94873.0,0.383806]
[1739368940900,0.0497,94906.0,94874.0,0.210805]
[1739368941106,0.0497,94906.0,94880.0,0.158092]
[1739368941310,0.0497,94906.0,94879.0,0.15]
[1739368941517,0.0497,94906.0,94888.0,0.15]
[1739368941746,0.0497,94906.0,94890.0,0.15]
[1739368942585,0.00544472,94894.0,94890.0,0.15]
[1739368943001,0.00544472,94894.0,94890.0,0.158077]
[1739368943206,0.00544472,94894.0,94881.0,0.0199555]
[1739368943207,0.00044472,94894.0,94882.0,0.15]
[1739368943412,0.00044472,94894.0,94893.0,0.15]
[1739368943622,0.00044472,94894.0,94893.0,0.27655734]
[1739368943834,0.00044472,94894.0,94893.0,0.27550365]
[1739368944257,0.00044472,94894.0,94893.0,0.61838765]
[1739368944673,0.00044472,94894.0,94893.0,0.45328565]
[1739368945084,0.0143701,94917.0,94914.0,0.158037]
[1739368945289,0.00022387,94929.0,94927.0,0.308016]
[1739368945500,0.00022387,94929.0,94927.0,0.43351965]
[1739368945709,0.00020338,94928.0,94927.0,0.43351965]
[1739368946931,0.00120338,94928.0,94927.0,0.44851965]
[1739368947161,0.00120338,94928.0,94927.0,0.4685362]
[1739368947368,0.00020338,94928.0,94927.0,0.4535362]
[1739368947782,0.00120338,94928.0,94927.0,0.4685362]
[1739368947989,0.00120338,94928.0,94927.0,0.4818562]